[Event "*** Titled Tuesday Blitz"]
[Site "Chess.com"]
[Date "2020.05.19"]
[Round "6"]
[White "MathiasWomacka"]
[Black "petrkostenko"]
[Result "0-1"]
[WhiteElo "2373"]
[BlackElo "2544"]
[TimeControl "180+1"]
[EndTime "13:10:53 PDT"]
[Termination "petrkostenko won on time"]

1. e4 {[%clk 0:03:00.9]} 1... e6 {[%clk 0:02:59.4]} 2. d4 {[%clk 0:03:00.5]}
2... d5 {[%clk 0:02:57.6]} 3. Nd2 {[%clk 0:03:01.1]} 3... Nf6 {[%clk 0:02:57.3]}
4. e5 {[%clk 0:03:00.7]} 4... Nfd7 {[%clk 0:02:57.9]} 5. Bd3 {[%clk 0:03:01.2]}
5... c5 {[%clk 0:02:58.8]} 6. c3 {[%clk 0:03:01.7]} 6... Nc6 {[%clk 0:02:59.5]}
7. Ne2 {[%clk 0:03:01.8]} 7... cxd4 {[%clk 0:02:58.2]} 8. cxd4 {[%clk
0:03:02.7]} 8... f6 {[%clk 0:02:59]} 9. exf6 {[%clk 0:03:03.2]} 9... Qxf6 {[%clk
0:02:58.1]} 10. Nf3 {[%clk 0:03:03.2]} 10... h6 {[%clk 0:02:57.6]} 11. O-O
{[%clk 0:03:02.1]} 11... Bd6 {[%clk 0:02:57.5]} 12. Be3 {[%clk 0:03:01.8]} 12...
O-O {[%clk 0:02:58]} 13. Rc1 {[%clk 0:03:01.7]} 13... Rd8 {[%clk 0:02:57.7]} 14.
Qd2 {[%clk 0:03:01.8]} 14... Nf8 {[%clk 0:02:57.6]} 15. Bf4 {[%clk 0:03:01.9]}
15... Bxf4 {[%clk 0:02:44.2]} 16. Nxf4 {[%clk 0:02:58.8]} 16... Bd7 {[%clk
0:02:43.6]} 17. Qe3 {[%clk 0:02:56.2]} 17... Be8 {[%clk 0:02:35.2]} 18. Rfe1
{[%clk 0:02:44.5]} 18... Bf7 {[%clk 0:02:34.9]} 19. Bb5 {[%clk 0:02:41.1]} 19...
g5 {[%clk 0:02:32.3]} 20. Nd3 {[%clk 0:02:39.1]} 20... Ne7 {[%clk 0:02:25.4]}
21. Rc7 {[%clk 0:02:05.3]} 21... Nf5 {[%clk 0:02:21.1]} 22. Qe5 {[%clk
0:02:05.3]} 22... Qg6 {[%clk 0:01:50]} 23. Rxb7 {[%clk 0:01:48.6]} 23... Nd6
{[%clk 0:01:45.6]} 24. Nc5 {[%clk 0:01:21.1]} 24... Nxb7 {[%clk 0:01:42.2]} 25.
Nxb7 {[%clk 0:01:22]} 25... Rdc8 {[%clk 0:01:37.9]} 26. Nc5 {[%clk 0:01:16.4]}
26... Rab8 {[%clk 0:01:37.8]} 27. Bd3 {[%clk 0:01:12.8]} 27... Qg7 {[%clk
0:01:37.7]} 28. Qxg7+ {[%clk 0:01:08.6]} 28... Kxg7 {[%clk 0:01:36.5]} 29. b3
{[%clk 0:01:08.9]} 29... Rb6 {[%clk 0:01:35.4]} 30. Ne5 {[%clk 0:01:05.4]} 30...
Rb4 {[%clk 0:01:35.2]} 31. Ba6 {[%clk 0:00:41.5]} 31... Rc7 {[%clk 0:01:32.1]}
32. Rd1 {[%clk 0:00:38.8]} 32... Ng6 {[%clk 0:01:24.5]} 33. Nxg6 {[%clk
0:00:38.8]} 33... Kxg6 {[%clk 0:01:15.2]} 34. Bd3+ {[%clk 0:00:38.5]} 34... Kf6
{[%clk 0:01:14.8]} 35. Na6 {[%clk 0:00:38]} 35... Rbb7 {[%clk 0:01:09.5]} 36.
Nxc7 {[%clk 0:00:37.8]} 36... Rxc7 {[%clk 0:01:09.8]} 37. Kf1 {[%clk 0:00:37.7]}
37... Bg6 {[%clk 0:01:09.1]} 38. Ke2 {[%clk 0:00:36.2]} 38... g4 {[%clk
0:01:03.6]} 39. Bxg6 {[%clk 0:00:32.1]} 39... Kxg6 {[%clk 0:01:01.3]} 40. Kd2
{[%clk 0:00:32.1]} 40... Rf7 {[%clk 0:00:56.2]} 41. Ke3 {[%clk 0:00:32.3]} 41...
Rc7 {[%clk 0:00:55.3]} 42. Rd2 {[%clk 0:00:31.4]} 42... h5 {[%clk 0:00:55.1]}
43. Kf4 {[%clk 0:00:31.3]} 43... Kf6 {[%clk 0:00:52.4]} 44. f3 {[%clk
0:00:31.2]} 44... Rg7 {[%clk 0:00:51.8]} 45. fxg4 {[%clk 0:00:28.3]} 45... Rxg4+
{[%clk 0:00:51]} 46. Kf3 {[%clk 0:00:28.5]} 46... Re4 {[%clk 0:00:48.3]} 47. g3
{[%clk 0:00:27.3]} 47... Kf5 {[%clk 0:00:47.5]} 48. b4 {[%clk 0:00:25.3]} 48...
Re1 {[%clk 0:00:47]} 49. a4 {[%clk 0:00:20.6]} 49... Rb1 {[%clk 0:00:44.7]} 50.
b5 {[%clk 0:00:20]} 50... Rb3+ {[%clk 0:00:43.9]} 51. Ke2 {[%clk 0:00:18.2]}
51... Rb4 {[%clk 0:00:43.5]} 52. Kd3 {[%clk 0:00:17.8]} 52... Rxa4 {[%clk
0:00:37.6]} 53. Rf2+ {[%clk 0:00:17.8]} 53... Kg6 {[%clk 0:00:38]} 54. Kc3
{[%clk 0:00:16.4]} 54... Rc4+ {[%clk 0:00:36.1]} 55. Kd3 {[%clk 0:00:16.3]}
55... Rb4 {[%clk 0:00:36.2]} 56. Ra2 {[%clk 0:00:15.9]} 56... Rxb5 {[%clk
0:00:28.8]} 57. Rxa7 {[%clk 0:00:15.6]} 57... Rb2 {[%clk 0:00:28.9]} 58. Re7
{[%clk 0:00:13.2]} 58... Kf6 {[%clk 0:00:26.4]} 59. Rh7 {[%clk 0:00:11]} 59...
Rxh2 {[%clk 0:00:25.8]} 60. Ke3 {[%clk 0:00:11.9]} 60... Kg6 {[%clk 0:00:20]}
61. Re7 {[%clk 0:00:10.9]} 61... Kf6 {[%clk 0:00:20]} 62. Rf7+ {[%clk
0:00:10.9]} 62... Kxf7 {[%clk 0:00:19.2]} 0-1

[Event "*** Titled Tuesday Blitz"]
[Site "Chess.com"]
[Date "2020.05.19"]
[Round "6"]
[White "InitiatingASC"]
[Black "TudorAnton"]
[Result "1-0"]
[WhiteElo "2369"]
[BlackElo "2480"]
[TimeControl "180+1"]
[EndTime "13:10:53 PDT"]
[Termination "InitiatingASC won by resignation"]

1. Nf3 {[%clk 0:02:57.2]} 1... d5 {[%clk 0:02:50.7]} 2. b3 {[%clk 0:02:58.1]}
2... Nf6 {[%clk 0:02:48.6]} 3. Bb2 {[%clk 0:02:58.7]} 3... Bg4 {[%clk
0:02:44.6]} 4. e3 {[%clk 0:02:58.8]} 4... e6 {[%clk 0:02:44.3]} 5. Be2 {[%clk
0:02:58.8]} 5... Be7 {[%clk 0:02:44.4]} 6. O-O {[%clk 0:02:59.3]} 6... O-O
{[%clk 0:02:44]} 7. c4 {[%clk 0:03:00]} 7... c6 {[%clk 0:02:44.5]} 8. cxd5
{[%clk 0:03:00.3]} 8... exd5 {[%clk 0:02:45.4]} 9. d3 {[%clk 0:03:00.9]} 9...
Nbd7 {[%clk 0:02:45.5]} 10. Nbd2 {[%clk 0:03:01.2]} 10... a5 {[%clk 0:02:45.9]}
11. a3 {[%clk 0:03:00.9]} 11... Re8 {[%clk 0:02:46.3]} 12. Qc2 {[%clk
0:02:59.2]} 12... Bf8 {[%clk 0:02:46.5]} 13. Rfe1 {[%clk 0:02:58.1]} 13... Bh5
{[%clk 0:02:46.6]} 14. Rac1 {[%clk 0:02:55.5]} 14... Nc5 {[%clk 0:02:43.9]} 15.
Qb1 {[%clk 0:02:51.4]} 15... Bg6 {[%clk 0:02:38.9]} 16. Bd4 {[%clk 0:02:47.6]}
16... Nfd7 {[%clk 0:02:38.8]} 17. b4 {[%clk 0:02:46]} 17... axb4 {[%clk
0:02:38.3]} 18. axb4 {[%clk 0:02:46.8]} 18... Ne6 {[%clk 0:02:38.5]} 19. Bc3
{[%clk 0:02:44.3]} 19... Be7 {[%clk 0:02:38.3]} 20. Qb2 {[%clk 0:02:43.9]} 20...
Bf6 {[%clk 0:02:38.2]} 21. Ra1 {[%clk 0:02:40.5]} 21... Bxc3 {[%clk 0:02:37.2]}
22. Qxc3 {[%clk 0:02:41]} 22... Qf6 {[%clk 0:02:35.1]} 23. d4 {[%clk 0:02:39.4]}
23... Qe7 {[%clk 0:02:25.3]} 24. Nb3 {[%clk 0:02:32.7]} 24... h6 {[%clk
0:02:22.1]} 25. Nc5 {[%clk 0:02:32.8]} 25... Nexc5 {[%clk 0:02:15.9]} 26. bxc5
{[%clk 0:02:33.7]} 26... Qf6 {[%clk 0:02:09]} 27. Bd3 {[%clk 0:02:30]} 27...
Bxd3 {[%clk 0:02:03.1]} 28. Qxd3 {[%clk 0:02:30.9]} 28... Rxa1 {[%clk 0:01:39]}
29. Rxa1 {[%clk 0:02:29.3]} 29... Nxc5 {[%clk 0:01:39.6]} 30. Qb1 {[%clk
0:02:14.9]} 30... Ne4 {[%clk 0:01:37.2]} 31. Qxb7 {[%clk 0:02:13.6]} 31... g5
{[%clk 0:01:37.6]} 32. Ra2 {[%clk 0:02:03.5]} 32... Kg7 {[%clk 0:01:05.1]} 33.
Rc2 {[%clk 0:01:44.5]} 33... c5 {[%clk 0:00:58.8]} 34. Qxd5 {[%clk 0:01:41.5]}
34... Qb6 {[%clk 0:00:41.8]} 35. Rc1 {[%clk 0:01:23.5]} 35... Nc3 {[%clk
0:00:40.3]} 36. Qc4 {[%clk 0:01:17.1]} 36... cxd4 {[%clk 0:00:36.8]} 37. Nxd4
{[%clk 0:01:14.7]} 37... Ne4 {[%clk 0:00:26.9]} 38. Nf5+ {[%clk 0:01:06.2]}
38... Kg6 {[%clk 0:00:27]} 39. Ng3 {[%clk 0:00:59.9]} 39... Nxg3 {[%clk
0:00:25.5]} 40. hxg3 {[%clk 0:00:59.6]} 40... Re5 {[%clk 0:00:23.3]} 41. Ra1
{[%clk 0:00:54.2]} 41... Re6 {[%clk 0:00:21.3]} 42. Qd3+ {[%clk 0:00:52]} 42...
Kg7 {[%clk 0:00:20.8]} 43. Rd1 {[%clk 0:00:46.8]} 43... Qb2 {[%clk 0:00:19.8]}
44. Rd2 {[%clk 0:00:41.7]} 44... Qa1+ {[%clk 0:00:19.9]} 45. Kh2 {[%clk
0:00:41.2]} 45... Qe5 {[%clk 0:00:20.5]} 46. Qd4 {[%clk 0:00:36.8]} 46... Qxd4
{[%clk 0:00:20.3]} 47. Rxd4 {[%clk 0:00:31.2]} 47... Ra6 {[%clk 0:00:17.1]} 48.
g4 {[%clk 0:00:31.2]} 48... Ra2 {[%clk 0:00:16.4]} 49. Kg3 {[%clk 0:00:31.6]}
49... Kg6 {[%clk 0:00:16.5]} 50. Kf3 {[%clk 0:00:30.1]} 50... f6 {[%clk
0:00:15.8]} 51. Rd6 {[%clk 0:00:29.8]} 51... Rb2 {[%clk 0:00:16.1]} 52. Rd5
{[%clk 0:00:29.9]} 52... Rc2 {[%clk 0:00:15.8]} 53. Kg3 {[%clk 0:00:29.7]} 53...
Rb2 {[%clk 0:00:16]} 54. Rd6 {[%clk 0:00:27.9]} 54... Rc2 {[%clk 0:00:15.5]} 55.
e4 {[%clk 0:00:28.2]} 55... Rb2 {[%clk 0:00:15.2]} 56. e5 {[%clk 0:00:28.2]}
56... Kg7 {[%clk 0:00:14.9]} 57. Rxf6 {[%clk 0:00:27.4]} 57... Rb3+ {[%clk
0:00:15.3]} 58. Rf3 {[%clk 0:00:26.9]} 58... Rb4 {[%clk 0:00:16.2]} 59. Re3
{[%clk 0:00:26.9]} 59... Kf7 {[%clk 0:00:15.3]} 60. Kf3 {[%clk 0:00:25.6]} 60...
Rf4+ {[%clk 0:00:13.6]} 61. Kg3 {[%clk 0:00:25.6]} 61... Ke6 {[%clk 0:00:14.5]}
62. f3 {[%clk 0:00:25.2]} 62... Ra4 {[%clk 0:00:14.5]} 63. Rb3 {[%clk
0:00:22.6]} 63... Kd5 {[%clk 0:00:13.7]} 64. Rb6 {[%clk 0:00:22.4]} 64... Kxe5
{[%clk 0:00:13.7]} 65. Rxh6 {[%clk 0:00:22.9]} 65... Ra5 {[%clk 0:00:13.6]} 66.
Rh8 {[%clk 0:00:22.3]} 66... Kf6 {[%clk 0:00:13.2]} 67. Rf8+ {[%clk 0:00:22.6]}
67... Kg6 {[%clk 0:00:13.3]} 68. Rf5 {[%clk 0:00:22.6]} 68... Ra3 {[%clk
0:00:12.4]} 69. Rc5 {[%clk 0:00:22.1]} 69... Rb3 {[%clk 0:00:12.9]} 70. Rc2
{[%clk 0:00:21.8]} 70... Ra3 {[%clk 0:00:12.2]} 71. Kf2 {[%clk 0:00:22.4]} 71...
Rb3 {[%clk 0:00:12.7]} 72. Rd2 {[%clk 0:00:22.9]} 72... Ra3 {[%clk 0:00:13.3]}
73. Ke2 {[%clk 0:00:22.7]} 73... Kf6 {[%clk 0:00:12.7]} 74. g3 {[%clk
0:00:22.6]} 74... Rb3 {[%clk 0:00:12.4]} 75. Rd3 {[%clk 0:00:22.9]} 75... Rb2+
{[%clk 0:00:12.1]} 76. Rd2 {[%clk 0:00:21.6]} 76... Rb3 {[%clk 0:00:12]} 77. Kf2
{[%clk 0:00:21.4]} 77... Ra3 {[%clk 0:00:12]} 78. Re2 {[%clk 0:00:21.4]} 78...
Rb3 {[%clk 0:00:12.1]} 79. f4 {[%clk 0:00:20.7]} 79... Ra3 {[%clk 0:00:11.6]}
80. Re3 {[%clk 0:00:20.6]} 80... Ra2+ {[%clk 0:00:11]} 81. Kf3 {[%clk 0:00:21]}
81... Ra5 {[%clk 0:00:10.9]} 82. f5 {[%clk 0:00:20.4]} 82... Ra4 {[%clk
0:00:09.1]} 83. Re6+ {[%clk 0:00:20.4]} 83... Kf7 {[%clk 0:00:09]} 84. Rg6
{[%clk 0:00:20.6]} 84... Ra3+ {[%clk 0:00:09.5]} 85. Kg2 {[%clk 0:00:20.8]}
85... Ra2+ {[%clk 0:00:09.7]} 86. Kh3 {[%clk 0:00:21.1]} 1-0

[Event "*** Titled Tuesday Blitz"]
[Site "Chess.com"]
[Date "2020.05.19"]
[Round "6"]
[White "Yashasd1995"]
[Black "andriipalchuk"]
[Result "1-0"]
[WhiteElo "2547"]
[BlackElo "1963"]
[TimeControl "180+1"]
[EndTime "13:11:25 PDT"]
[Termination "Yashasd1995 won by resignation"]

1. b3 {[%clk 0:03:00.9]} 1... Nf6 {[%clk 0:02:46.7]} 2. Bb2 {[%clk 0:03:01.8]}
2... e6 {[%clk 0:02:47]} 3. e3 {[%clk 0:03:01.7]} 3... b6 {[%clk 0:02:47.5]} 4.
f4 {[%clk 0:02:59.9]} 4... Bb7 {[%clk 0:02:47.8]} 5. Nf3 {[%clk 0:03:00.5]} 5...
c5 {[%clk 0:02:47.9]} 6. Be2 {[%clk 0:03:00.7]} 6... Be7 {[%clk 0:02:48.2]} 7.
O-O {[%clk 0:03:01.2]} 7... O-O {[%clk 0:02:48.5]} 8. c4 {[%clk 0:03:01.3]} 8...
d6 {[%clk 0:02:43.2]} 9. Nc3 {[%clk 0:03:00.7]} 9... Nbd7 {[%clk 0:02:41.4]} 10.
d4 {[%clk 0:02:59.6]} 10... a6 {[%clk 0:02:40.6]} 11. Qd3 {[%clk 0:02:46]} 11...
Qc7 {[%clk 0:02:38.6]} 12. d5 {[%clk 0:02:45.1]} 12... exd5 {[%clk 0:02:37.4]}
13. cxd5 {[%clk 0:02:39.1]} 13... b5 {[%clk 0:02:36.2]} 14. e4 {[%clk
0:02:37.7]} 14... c4 {[%clk 0:02:27.6]} 15. bxc4 {[%clk 0:02:36.6]} 15... Nc5
{[%clk 0:02:26.1]} 16. Qd4 {[%clk 0:02:25.3]} 16... b4 {[%clk 0:02:25.8]} 17.
Nd1 {[%clk 0:02:10.9]} 17... Ncxe4 {[%clk 0:02:24.4]} 18. Ne3 {[%clk 0:02:05.9]}
18... Nc3 {[%clk 0:02:17]} 19. Bxc3 {[%clk 0:02:02.3]} 19... bxc3 {[%clk
0:02:17.9]} 20. Rac1 {[%clk 0:01:59.2]} 20... Nd7 {[%clk 0:02:14.2]} 21. Qxc3
{[%clk 0:01:54.8]} 21... Rfe8 {[%clk 0:02:13.8]} 22. Bd3 {[%clk 0:01:50.3]}
22... Bf6 {[%clk 0:02:03.8]} 23. Qd2 {[%clk 0:01:50.2]} 23... Nc5 {[%clk
0:01:46]} 24. Bb1 {[%clk 0:01:42.4]} 24... Qb6 {[%clk 0:01:25.3]} 25. Rfe1
{[%clk 0:01:33.7]} 25... Ne4 {[%clk 0:01:17.7]} 26. Qd3 {[%clk 0:01:29.2]} 26...
g6 {[%clk 0:01:13.6]} 27. h3 {[%clk 0:01:24.6]} 27... Re7 {[%clk 0:01:01.1]} 28.
Kh2 {[%clk 0:01:22.2]} 28... Rae8 {[%clk 0:00:57.8]} 29. Ng4 {[%clk 0:01:21.1]}
29... Bg7 {[%clk 0:00:57.2]} 30. Qb3 {[%clk 0:01:14.1]} 30... Qxb3 {[%clk
0:00:48.5]} 31. axb3 {[%clk 0:01:15]} 31... f5 {[%clk 0:00:46.7]} 32. Bxe4
{[%clk 0:01:03.6]} 32... fxg4 {[%clk 0:00:44.2]} 33. Ne5 {[%clk 0:00:44.1]}
33... dxe5 {[%clk 0:00:41.8]} 34. d6 {[%clk 0:00:43.8]} 34... Rd7 {[%clk
0:00:42]} 35. Bxb7 {[%clk 0:00:42.9]} 35... Rxb7 {[%clk 0:00:42.9]} 36. c5
{[%clk 0:00:42.8]} 36... g3+ {[%clk 0:00:26.5]} 37. Kg1 {[%clk 0:00:31.3]} 37...
Rd7 {[%clk 0:00:23.2]} 38. Red1 {[%clk 0:00:23.4]} 38... Bf8 {[%clk 0:00:09.3]}
39. Re1 {[%clk 0:00:22]} 39... e4 {[%clk 0:00:09.2]} 40. Rc3 {[%clk 0:00:20]}
40... Rf7 {[%clk 0:00:08.8]} 41. Rxg3 {[%clk 0:00:16.5]} 41... Rxf4 {[%clk
0:00:09.2]} 42. Rc3 {[%clk 0:00:13.1]} 42... e3 {[%clk 0:00:08.4]} 43. d7 {[%clk
0:00:12]} 43... Rd8 {[%clk 0:00:07.3]} 44. c6 {[%clk 0:00:12.4]} 44... Bd6
{[%clk 0:00:06.3]} 45. Rexe3 {[%clk 0:00:12.3]} 45... Rf7 {[%clk 0:00:03.6]} 46.
Re8+ {[%clk 0:00:11.6]} 46... Rf8 {[%clk 0:00:03.2]} 47. Rxf8+ {[%clk
0:00:11.9]} 47... Kxf8 {[%clk 0:00:04.1]} 48. c7 {[%clk 0:00:12]} 48... Bxc7
{[%clk 0:00:04.7]} 49. Rxc7 {[%clk 0:00:12.6]} 49... Ke7 {[%clk 0:00:05.6]} 50.
Ra7 {[%clk 0:00:11.8]} 50... Rxd7 {[%clk 0:00:05]} 51. Rxa6 {[%clk 0:00:12]}
51... Rd1+ {[%clk 0:00:05]} 52. Kh2 {[%clk 0:00:11.1]} 52... Rb1 {[%clk
0:00:05.9]} 53. Rb6 {[%clk 0:00:10.7]} 53... Rb2 {[%clk 0:00:05.2]} 54. Rb7+
{[%clk 0:00:10.9]} 54... Kf6 {[%clk 0:00:05.5]} 55. Rxh7 {[%clk 0:00:11.2]}
55... Rxb3 {[%clk 0:00:05.4]} 56. Rc7 {[%clk 0:00:11.5]} 56... Kg5 {[%clk
0:00:05.6]} 57. Rc5+ {[%clk 0:00:10.5]} 57... Kf4 {[%clk 0:00:05.4]} 58. Rc4+
{[%clk 0:00:06.7]} 58... Kf5 {[%clk 0:00:05.3]} 59. Rg4 {[%clk 0:00:06.9]} 59...
g5 {[%clk 0:00:05.2]} 60. Rc4 {[%clk 0:00:06.4]} 60... Ra3 {[%clk 0:00:04.5]}
61. Rc2 {[%clk 0:00:06.3]} 61... Kf4 {[%clk 0:00:04.8]} 62. Rf2+ {[%clk
0:00:06.4]} 62... Ke4 {[%clk 0:00:04.3]} 63. Rf8 {[%clk 0:00:06]} 63... Ke5
{[%clk 0:00:03.6]} 64. Rf2 {[%clk 0:00:03.1]} 64... Ke4 {[%clk 0:00:03.2]} 65.
g4 {[%clk 0:00:02.9]} 65... Ke5 {[%clk 0:00:02.9]} 66. Kg2 {[%clk 0:00:03.2]}
66... Ke6 {[%clk 0:00:03]} 67. Re2+ {[%clk 0:00:02.7]} 67... Kf6 {[%clk
0:00:03]} 68. Rf2+ {[%clk 0:00:03.1]} 68... Kg6 {[%clk 0:00:03.5]} 69. Re2
{[%clk 0:00:02.8]} 69... Rb3 {[%clk 0:00:04]} 70. Rf2 {[%clk 0:00:03.1]} 70...
Kh6 {[%clk 0:00:03.9]} 71. Rf3 {[%clk 0:00:03.5]} 71... Kg6 {[%clk 0:00:04.3]}
72. Kg3 {[%clk 0:00:04.4]} 72... Rb5 {[%clk 0:00:04.4]} 73. Re3 {[%clk
0:00:03.9]} 73... Rb4 {[%clk 0:00:04.9]} 74. Rf3 {[%clk 0:00:04]} 74... Rc4
{[%clk 0:00:04.7]} 75. Rd3 {[%clk 0:00:03.7]} 75... Rc2 {[%clk 0:00:05.1]} 76.
Rd6+ {[%clk 0:00:04]} 76... Kg7 {[%clk 0:00:05.6]} 77. Rd5 {[%clk 0:00:04]}
77... Kg6 {[%clk 0:00:05.6]} 78. Rd3 {[%clk 0:00:03.7]} 78... Rc1 {[%clk
0:00:04.8]} 79. Kf3 {[%clk 0:00:04]} 79... Rh1 {[%clk 0:00:04.7]} 80. Ke4 {[%clk
0:00:04.2]} 80... Rf1 {[%clk 0:00:04.7]} 81. Ke5 {[%clk 0:00:03.9]} 81... Re1+
{[%clk 0:00:04.6]} 82. Kd6 {[%clk 0:00:03.4]} 82... Kf6 {[%clk 0:00:04.5]} 83.
Re3 {[%clk 0:00:01.3]} 83... Kg6 {[%clk 0:00:05.1]} 84. Rxe1 {[%clk 0:00:01]}
84... Kf6 {[%clk 0:00:05.6]} 85. Rf1+ {[%clk 0:00:01.9]} 85... Kg6 {[%clk
0:00:06.3]} 86. Rf2 {[%clk 0:00:02.6]} 86... Kh6 {[%clk 0:00:06.6]} 87. Rf5
{[%clk 0:00:03.5]} 87... Kg6 {[%clk 0:00:07.3]} 88. Ke5 {[%clk 0:00:04.3]} 88...
Kh6 {[%clk 0:00:08.2]} 89. Ke6 {[%clk 0:00:04.9]} 89... Kg6 {[%clk 0:00:09.1]}
90. Ke5 {[%clk 0:00:05.3]} 1-0

[Event "*** Titled Tuesday Blitz"]
[Site "Chess.com"]
[Date "2020.05.19"]
[Round "6"]
[White "Moon_stone123"]
[Black "MaxLeto"]
[Result "1-0"]
[WhiteElo "2513"]
[BlackElo "2327"]
[TimeControl "180+1"]
[EndTime "13:11:32 PDT"]
[Termination "Moon_stone123 won on time"]

1. Nf3 {[%clk 0:02:59.7]} 1... d5 {[%clk 0:02:56]} 2. g3 {[%clk 0:03:00.2]} 2...
c6 {[%clk 0:02:55.6]} 3. Bg2 {[%clk 0:03:00.8]} 3... Nf6 {[%clk 0:02:55.6]} 4.
O-O {[%clk 0:03:01.1]} 4... Bf5 {[%clk 0:02:55.7]} 5. d3 {[%clk 0:03:00.5]} 5...
e6 {[%clk 0:02:55.8]} 6. Nbd2 {[%clk 0:03:00.2]} 6... Be7 {[%clk 0:02:54.7]} 7.
Qe1 {[%clk 0:03:00.3]} 7... h6 {[%clk 0:02:53.4]} 8. e4 {[%clk 0:03:00.4]} 8...
Bh7 {[%clk 0:02:54]} 9. b3 {[%clk 0:02:58.6]} 9... O-O {[%clk 0:02:51.5]} 10.
Bb2 {[%clk 0:02:59.1]} 10... a5 {[%clk 0:02:52]} 11. a3 {[%clk 0:02:57.6]} 11...
b5 {[%clk 0:02:50.3]} 12. c4 {[%clk 0:02:52]} 12... Qb6 {[%clk 0:02:43.7]} 13.
Qc1 {[%clk 0:02:47.4]} 13... dxe4 {[%clk 0:02:38.1]} 14. dxe4 {[%clk 0:02:42.6]}
14... Nxe4 {[%clk 0:02:35.9]} 15. Nxe4 {[%clk 0:02:40.9]} 15... Bxe4 {[%clk
0:02:36.8]} 16. Re1 {[%clk 0:02:37.4]} 16... Bh7 {[%clk 0:02:24]} 17. cxb5
{[%clk 0:02:30.7]} 17... Qxb5 {[%clk 0:02:24.5]} 18. Nd4 {[%clk 0:02:27.7]}
18... Qb6 {[%clk 0:02:21.6]} 19. Qc3 {[%clk 0:02:03.9]} 19... Bf6 {[%clk
0:02:18.6]} 20. Qc4 {[%clk 0:01:58.8]} 20... Rd8 {[%clk 0:01:40.7]} 21. Rad1
{[%clk 0:01:51.5]} 21... Ra7 {[%clk 0:01:40.7]} 22. Nxc6 {[%clk 0:01:48.7]}
22... Nxc6 {[%clk 0:00:44.3]} 23. Bxf6 {[%clk 0:01:48]} 23... gxf6 {[%clk
0:00:17.6]} 24. Qxc6 {[%clk 0:01:47]} 24... Rxd1 {[%clk 0:00:10.6]} 25. Rxd1
{[%clk 0:01:37.9]} 25... Qxc6 {[%clk 0:00:10]} 26. Bxc6 {[%clk 0:01:37.3]} 26...
Bc2 {[%clk 0:00:09]} 27. Rd8+ {[%clk 0:01:34.7]} 27... Kg7 {[%clk 0:00:09.6]}
28. Rb8 {[%clk 0:01:35.2]} 28... Rc7 {[%clk 0:00:09.2]} 29. Bf3 {[%clk
0:01:29.6]} 29... Rc3 {[%clk 0:00:08.6]} 30. Kg2 {[%clk 0:01:27.4]} 30... Rxb3
{[%clk 0:00:07.3]} 31. Rxb3 {[%clk 0:01:19.9]} 31... Bxb3 {[%clk 0:00:08.2]} 32.
Be4 {[%clk 0:01:18.9]} 32... f5 {[%clk 0:00:08.4]} 33. Bc6 {[%clk 0:01:18.2]}
33... Kf6 {[%clk 0:00:08.6]} 34. Kf3 {[%clk 0:01:18.5]} 34... Ke5 {[%clk
0:00:08.6]} 35. Ke3 {[%clk 0:01:18.6]} 35... Kd6 {[%clk 0:00:08.6]} 36. Be8
{[%clk 0:01:18.7]} 36... f6 {[%clk 0:00:09]} 37. h4 {[%clk 0:01:18.7]} 37... Kc5
{[%clk 0:00:08.9]} 38. Bd7 {[%clk 0:01:18.2]} 38... Bd5 {[%clk 0:00:08.2]} 39.
Kd3 {[%clk 0:01:17.4]} 39... Bc4+ {[%clk 0:00:06.3]} 40. Kc3 {[%clk 0:01:15.3]}
40... Bd5 {[%clk 0:00:07.2]} 41. Kd3 {[%clk 0:01:15.3]} 41... Kd6 {[%clk
0:00:07.4]} 42. Be8 {[%clk 0:01:14]} 42... Be4+ {[%clk 0:00:06.8]} 43. Kd4
{[%clk 0:01:12.8]} 43... Bc6 {[%clk 0:00:06.1]} 44. Bh5 {[%clk 0:01:08]} 44...
Bb5 {[%clk 0:00:04.8]} 45. Bd1 {[%clk 0:01:06]} 45... e5+ {[%clk 0:00:05]} 46.
Ke3 {[%clk 0:00:59]} 46... Kc5 {[%clk 0:00:05.9]} 47. Bc2 {[%clk 0:00:58.2]}
47... Bd7 {[%clk 0:00:06.5]} 48. Bd3 {[%clk 0:00:55.9]} 48... Be6 {[%clk
0:00:04.9]} 49. Ba6 {[%clk 0:00:46.2]} 49... Kd5 {[%clk 0:00:04.6]} 50. Bd3
{[%clk 0:00:44.3]} 50... Kd6 {[%clk 0:00:04]} 51. Ba6 {[%clk 0:00:43.5]} 51...
Kc5 {[%clk 0:00:04.6]} 52. Bd3 {[%clk 0:00:43.1]} 52... Bd7 {[%clk 0:00:05]} 53.
Be2 {[%clk 0:00:42.2]} 53... Bb5 {[%clk 0:00:04.1]} 54. Bd1 {[%clk 0:00:41.9]}
54... Kc4 {[%clk 0:00:03.7]} 55. Be2+ {[%clk 0:00:42.3]} 55... Kc5 {[%clk
0:00:04]} 56. Bd1 {[%clk 0:00:42.8]} 56... Bc4 {[%clk 0:00:04.1]} 57. Bc2 {[%clk
0:00:42.7]} 57... Be6 {[%clk 0:00:04]} 58. Kd3 {[%clk 0:00:40.2]} 58... Kb5
{[%clk 0:00:03.6]} 59. Kc3 {[%clk 0:00:39]} 59... Bd7 {[%clk 0:00:03]} 60. Bd3+
{[%clk 0:00:37.6]} 60... Kc5 {[%clk 0:00:03.6]} 61. Bf1 {[%clk 0:00:37.8]} 61...
Bc6 {[%clk 0:00:03.4]} 62. Bd3 {[%clk 0:00:37.1]} 62... Be4 {[%clk 0:00:04]} 63.
Ba6 {[%clk 0:00:36]} 63... Kd5 {[%clk 0:00:03.6]} 64. Bb7+ {[%clk 0:00:36]}
64... Kc5 {[%clk 0:00:03.8]} 65. Bc8 {[%clk 0:00:35.7]} 65... Kd6 {[%clk
0:00:03.5]} 66. Kc4 {[%clk 0:00:33.8]} 66... Kc7 {[%clk 0:00:03.6]} 67. Be6
{[%clk 0:00:32.9]} 67... Kd6 {[%clk 0:00:04.1]} 68. Bg8 {[%clk 0:00:32.9]} 68...
f4 {[%clk 0:00:04.1]} 69. Kb5 {[%clk 0:00:31]} 69... fxg3 {[%clk 0:00:03.5]} 70.
fxg3 {[%clk 0:00:31.9]} 70... Bd5 {[%clk 0:00:03.7]} 71. Bh7 {[%clk 0:00:31.1]}
71... e4 {[%clk 0:00:03.9]} 72. Kxa5 {[%clk 0:00:31.1]} 72... Kc5 {[%clk
0:00:04.6]} 73. Ka6 {[%clk 0:00:30]} 73... Kd4 {[%clk 0:00:03.5]} 74. Bg6 {[%clk
0:00:23.7]} 74... e3 {[%clk 0:00:02.3]} 75. Bh5 {[%clk 0:00:24]} 75... Bc4+
{[%clk 0:00:02.8]} 76. Kb6 {[%clk 0:00:24.4]} 76... e2 {[%clk 0:00:03.7]} 77.
Bxe2 {[%clk 0:00:23.7]} 77... Bxe2 {[%clk 0:00:04.6]} 78. Kc6 {[%clk 0:00:24.6]}
78... Ke5 {[%clk 0:00:04.2]} 79. Kd7 {[%clk 0:00:24.7]} 79... Kf5 {[%clk
0:00:03.4]} 80. Ke7 {[%clk 0:00:25]} 80... h5 {[%clk 0:00:03.2]} 81. Kf7 {[%clk
0:00:24.6]} 81... Bc4+ {[%clk 0:00:02]} 82. Kg7 {[%clk 0:00:24.6]} 82... Kg4
{[%clk 0:00:01.8]} 83. Kxf6 {[%clk 0:00:24.2]} 83... Kxg3 {[%clk 0:00:02]} 84.
Kg5 {[%clk 0:00:24.7]} 84... Be2 {[%clk 0:00:02.2]} 85. a4 {[%clk 0:00:24.8]}
85... Bg4 {[%clk 0:00:01.7]} 86. a5 {[%clk 0:00:25]} 86... Bf3 {[%clk
0:00:01.8]} 87. a6 {[%clk 0:00:20.6]} 87... Kh3 {[%clk 0:00:02]} 88. Kf4 {[%clk
0:00:18.6]} 88... Ba8 {[%clk 0:00:02]} 89. Kg5 {[%clk 0:00:19.5]} 89... Bf3
{[%clk 0:00:02.3]} 90. Kf4 {[%clk 0:00:19.7]} 90... Kg2 {[%clk 0:00:02.9]} 91.
Kg5 {[%clk 0:00:20.6]} 91... Kf2 {[%clk 0:00:03.5]} 92. Kf4 {[%clk 0:00:20.5]}
92... Kg2 {[%clk 0:00:03.9]} 93. Kg5 {[%clk 0:00:21.4]} 93... Kg3 {[%clk
0:00:04.2]} 94. a7 {[%clk 0:00:20.5]} 94... Ba8 {[%clk 0:00:04.4]} 95. Kxh5
{[%clk 0:00:19.6]} 95... Kf4 {[%clk 0:00:04.7]} 96. Kg6 {[%clk 0:00:19.7]} 96...
Kg4 {[%clk 0:00:04.5]} 97. h5 {[%clk 0:00:20]} 97... Kf4 {[%clk 0:00:04.5]} 98.
h6 {[%clk 0:00:20.1]} 98... Be4+ {[%clk 0:00:05.2]} 99. Kg7 {[%clk 0:00:20.3]}
99... Kg5 {[%clk 0:00:06.1]} 100. h7 {[%clk 0:00:20.7]} 1-0